Workbook

Sheet About
B5: The Fundraising System Projections Tool
B6: A planning workbook for organizing your fundraising projections by revenue stream
B8: How to use this workbook
B9: 1. Start on the Summary Projections tab to see your overall goal and current totals.
B10: 2. Use each category tab to enter your donors, funders, and prospects, along with target gift amounts and confidence percentages.
B11: 3. Return to the Summary tab — your totals update automatically as you enter data.
B13: Revenue categories tracked
B14: • Board Gifts
B15: • Foundations
B16: • Corporations
B17: • Government
B18: • Individuals (non-board)
B19: • Patron Society (membership program)
B20: • Benefit Events
B21: • Annual Campaign
B22: Adjust these categories to fit your organization. To add or remove a category, unprotect the relevant tab (Review ▸ Unprotect Sheet) before editing.
B24: How to classify each gift
B25: Received / Confirmed. Money already in hand for this fiscal year, or written confirmation that you will receive it. For multi-year grants, include only the portion allocated to the current fiscal year.
B26: Expected. Gifts you are counting on but have not yet received. Assign a confidence percentage (0–100%) to each one. Err on the side of caution — a reliable longtime supporter might be 90%, while someone who has gone quiet might be 50%. If a donor has not recently given and has not committed, move them to Prospect.
B27: Prospect. Funders or donors you plan to pursue to close the gap between confirmed/expected revenue and your goal. These are not counted toward your forecast until they commit.
B29: What the Summary tab shows
B30: For each category, the Summary displays your Goal, your Received/Confirmed total, your discounted Expected total (target × confidence %), the To-Be-Identified gap, and your Prospect pipeline. The To-Be-Identified column is what you still need to raise after accounting for confirmed and expected gifts.
B32: How this workbook is protected
B33: Each tab is locked to protect the formulas. You can freely edit donor and funder names, target gift amounts, confidence percentages, and the TOTAL GOAL on each tab. Other cells are read-only.
B34: If you need to add or remove rows, unprotect the sheet (Review ▸ Unprotect Sheet), make your changes, then re-protect it. Adding or removing rows may require you to extend the subtotal formulas.
B36: * All names and gift amounts in this workbook are fictitious. Any resemblance to actual individuals or entities is coincidental.

Sheet Summary Projections
A1: Summary Projections*
A2: Fiscal Year Beginning July 1, 2026
A4: Revenue Stream | B4: Goal | C4: Received/Confirmed | D4: Expected | E4: To Be Identified | F4: Prospect
A5: Board Gifts | B5: ='Board Gifts '!C63 -> $1,200,000 | C5: ='Board Gifts '!E27 -> $530,500 | D5: ='Board Gifts '!E51 -> $473,100 | E5: ='Board Gifts '!C64 -> $196,400 | F5: ='Board Gifts '!C60 -> $85,000
A6: Foundations | B6: =Foundations!E44 -> $825,000 | C6: =Foundations!E17 -> $390,125 | D6: =Foundations!E29 -> $326,125 | E6: =Foundations!E45 -> $108,750 | F6: =Foundations!C41 -> $343,500
A7: Corporations | B7: =Corporations!E51 -> $795,000 | C7: =Corporations!E24 -> $556,000 | D7: =Corporations!E37 -> $216,700 | E7: =Corporations!E52 -> $22,300 | F7: =Corporations!C48 -> $245,000
A8: Government | B8: =Government!E23 -> $750,000 | C8: =Government!E11 -> $593,000 | D8: =Government!E15 -> $120,000 | E8: =Government!E24 -> $37,000 | F8: =Government!C20 -> $60,000
A9: Individuals | B9: =Individuals!E63 -> $1,200,000 | C9: =Individuals!E22 -> $523,500 | D9: =Individuals!E49 -> $369,720 | E9: =Individuals!E64 -> $306,780 | F9: =Individuals!C60 -> $367,500
A10: Patron Society | B10: ='Patron Society'!E69 -> $125,000 | C10: ='Patron Society'!E25 -> $47,500 | D10: ='Patron Society'!E55 -> $52,925 | E10: ='Patron Society'!E70 -> $24,575 | F10: ='Patron Society'!C66 -> $26,700
A11: Benefit Events | B11: =Benefits!E85 -> $221,000 | C11: =Benefits!E14+Benefits!E47+Benefits!E79 -> $102,600 | D11: =Benefits!E24+Benefits!E57 -> $56,380 | E11: =Benefits!E86 -> $62,020 | F11: =Benefits!C33+Benefits!C66 -> $83,350
A12: Annual Campaign | B12: ='Annual Campaign'!B8 -> $85,000 | C12: ='Annual Campaign'!C8 -> $61,073 | D12: ='Annual Campaign'!D8 -> $20,000 | E12: =B12-(C12+D12) -> $3,927
A13: Total | B13: =SUM(B5:B12) -> $5,201,000 | C13: =SUM(C5:C12) -> $2,804,298 | D13: =SUM(D5:D12) -> $1,634,950 | E13: =SUM(E5:E12) -> $761,752 | F13: =SUM(F5:F12) -> $1,211,050
A16: © The Fundraising System
A17: www.thefundraisingsystem.com

Sheet Board Gifts
A1: Board Gifts
A2: Blue cells are calculated for you, and they generally should not be altered.
A4: Category | B4: Trustee | C4: Target Gift | D4: Confidence % | E4: Revenue forecast
A5: Received/Confirmed
B6: Sallie Field | C6: $50,000 | D6: 100% | E6: =C6*D6 -> $50,000
B7: Neha Lindsey | C7: $25,000 | D7: 100% | E7: $25,000
B8: Efe Simmonds | C8: $35,000 | D8: 100% | E8: $35,000
B9: Melisa Haynes | C9: $100,000 | D9: 100% | E9: $100,000
B10: Onur Holland | C10: $500 | D10: 100% | E10: $500
B11: Amira Redman | C11: $50,000 | D11: 100% | E11: $50,000
B12: Denise Whitehouse | C12: $10,000 | D12: 100% | E12: $10,000
B13: Atticus Middleton | C13: $12,500 | D13: 100% | E13: $12,500
B14: Ryder Myers | C14: $10,000 | D14: 100% | E14: $10,000
B15: Clifford Bean | C15: $5,000 | D15: 100% | E15: $5,000
B16: Maurice Lynch | C16: $7,500 | D16: 100% | E16: $7,500
B17: Rosa Petersen | C17: $50,000 | D17: 100% | E17: $50,000
B18: Crystal Turner | C18: $25,000 | D18: 100% | E18: $25,000
B19: Charly Mathews | C19: $10,000 | D19: 100% | E19: $10,000
B20: Paul Jenkins | C20: $50,000 | D20: 100% | E20: $50,000
B21: Brandy Felix | C21: $5,000 | D21: 100% | E21: $5,000
B22: Jamil Rojas | C22: $5,000 | D22: 100% | E22: $5,000
B23: Milton Mcgill | C23: $25,000 | D23: 100% | E23: $25,000
B24: Aroush Pike | C24: $20,000 | D24: 100% | E24: $20,000
B25: Rohaan Thomas | C25: $35,000 | D25: 100% | E25: $35,000
B27: Subtotal | C27: =SUM(C6:C26) -> $530,500 | E27: =SUM(E6:E26) -> $530,500
A29: Expected
B30: Sallie Field | C30: $25,000 | D30: 5% | E30: =C30*D30 -> $1,250
B31: Neha Lindsey | C31: $25,000 | D31: 100% | E31: $25,000
B32: Efe Simmonds | C32: $15,000 | D32: 100% | E32: $15,000
B33: Melisa Haynes | C33: $0 | E33: $0
B34: Onur Holland | C34: $4,500 | D34: 50% | E34: $2,250
B35: Amira Redman | C35: $45,000 | D35: 90% | E35: $40,500
B36: Denise Whitehouse | C36: $40,000 | D36: 100% | E36: $40,000
B37: Atticus Middleton | C37: $37,500 | D37: 90% | E37: $33,750
B38: Ryder Myers | C38: $40,000 | D38: 90% | E38: $36,000
B39: Clifford Bean | C39: $50,000 | D39: 75% | E39: $37,500
B40: Maurice Lynch | C40: $42,500 | D40: 100% | E40: $42,500
B41: Rosa Petersen | C41: $100,000 | E41: $0
B42: Crystal Turner | C42: $25,000 | D42: 100% | E42: $25,000
B43: Charly Mathews | C43: $40,000 | D43: 100% | E43: $40,000
B44: Paul Jenkins | C44: $0 | E44: $0
B45: Brandy Felix | C45: $45,000 | D45: 90% | E45: $40,500
B46: Jamil Rojas | C46: $45,000 | D46: 90% | E46: $40,500
B47: Milton Mcgill | C47: $25,000 | D47: 100% | E47: $25,000
B48: Aroush Pike | C48: $30,000 | D48: 90% | E48: $27,000
B49: Rohaan Thomas | C49: $1,500 | D49: 90% | E49: $1,350
B51: Subtotal | C51: =SUM(C30:C50) -> $636,000 | E51: =SUM(E30:E50) -> $473,100
A53: PROSPECTS
B54: Efe Simmonds | C54: $10,000 | D54: N.A | E54: N.A.
B55: Denise Whitehouse | C55: $25,000 | D55: N.A | E55: N.A.
B56: Maurice Lynch | C56: $5,000 | D56: N.A | E56: N.A.
B57: Crystal Turner | C57: $10,000 | D57: N.A | E57: N.A.
B58: Charly Mathews | C58: $10,000 | D58: N.A | E58: N.A.
B59: Milton McGill | C59: $25,000 | D59: N.A | E59: N.A.
B60: Subtotal | C60: =SUM(C54:C59) -> $85,000
A62: TOTAL CONFIRMED AND EXPECTED | C62: =SUM(E27+E51) -> $1,003,600
A63: TOTAL GOAL | C63: $1,200,000
A64: REMAINING TO BE IDENTIFIED | C64: =C63-C62 -> $196,400
A67: © The Fundraising System
A68: www.thefundraisingsystem.com

Sheet Foundations
A1: Foundations
A2: Blue cells are calculated for you, and they generally should not be altered.
A4: Category | B4: Funder/Prospect | C4: Target Gift | D4: Confidence % | E4: Revenue forecast
A5: Received/Confirmed
B6: Abacus Foundation | C6: $25,000 | D6: 100% | E6: =C6*D6 -> $25,000
B7: Amphora Trust | C7: 50,000 | D7: 100% | E7: 50,000
B8: Alberti Fund | C8: 10,000 | D8: 100% | E8: 10,000
B9: Aurora Philanthropic Trust | C9: 2,500 | D9: 100% | E9: 2,500
B10: Chirico Foundation | C10: 25,000 | D10: 100% | E10: 25,000
B11: Botticelli Trust | C11: 150,000 | D11: 100% | E11: 150,000
B12: Van Eyck Foundation | C12: 20,000 | D12: 100% | E12: 20,000
B13: Garnier Foundation | C13: 25,000 | D13: 100% | E13: 25,000
B14: Hamilton Family Foundation | C14: 15,000 | D14: 100% | E14: 15,000
B15: The Hopper Fund | C15: 40,000 | D15: 100% | E15: 40,000
B16: Lorrenzo Foundation | C16: 27,625 | D16: 100% | E16: 27,625
A17: Subtotal | C17: =SUM(C6:C16) -> $390,125 | E17: =SUM(E6:E16) -> $390,125
A19: Expected
B20: La Tour Foundation | C20: $50,000 | D20: 90% | E20: =C20*D20 -> $45,000
B21: Lippi Trust | C21: 100,000 | D21: 75% | E21: $75,000
B22: The Judd Endowment | C22: 50,000 | D22: 50% | E22: $25,000
B23: Thomas Foundation | C23: 25,000 | D23: 50% | E23: $12,500
B24: Villard Trust | C24: 10,000 | D24: 75% | E24: $7,500
B25: The Stuart Family Foundation | C25: 150,000 | D25: 95% | E25: $142,500
B26: The Robert Smithson Estate | C26: 4,500 | D26: 25% | E26: $1,125
B27: Ed Steichen Family Trust | C27: 10,000 | D27: 50% | E27: $5,000
B28: Picasso Charitable Foundation | C28: 25,000 | D28: 50% | E28: $12,500
A29: Subtotal | C29: =SUM(C20:C28) -> $424,500 | E29: =SUM(E20:E28) -> $326,125
A31: Prospects
B32: Hartwig Foundation | C32: $5,000 | D32: N.A. | E32: N.A.
B33: Alexander Trust | C33: $50,000 | D33: N.A. | E33: N.A.
B34: Vita Philanthropic Trust | C34: $25,000 | D34: N.A. | E34: N.A.
B35: Macy Family Foundation | C35: $1,000 | D35: N.A. | E35: N.A.
B36: Bloomlander Foundation | C36: $125,000 | D36: N.A. | E36: N.A.
B37: Lichtenberg Fund | C37: $50,000 | D37: N.A. | E37: N.A.
B38: Johnson Family Foundation | C38: $10,000 | D38: N.A. | E38: N.A.
B39: Saperstein Charitable Trust | C39: $2,500 | D39: N.A. | E39: N.A.
B40: Lawrence Foundation | C40: $75,000 | D40: N.A. | E40: N.A.
A41: Subtotal | C41: =SUM(C32:C40) -> $343,500
A43: TOTAL CONFIRMED AND EXPECTED | E43: =SUM(E17+E29) -> $716,250
A44: TOTAL GOAL | E44: $825,000
A45: REMAINING TO BE IDENTIFIED | E45: =E44-E43 -> $108,750
A48: © The Fundraising System
A49: www.thefundraisingsystem.com

Sheet Corporations
A1: Corporations
A2: Blue cells are calculated for you, and they generally should not be altered.
A4: Category | B4: Funder/Prospect | C4: Target Gift | D4: Confidence % | E4: Revenue forecast
A5: Received/Confirmed
B6: Pope Corporation | C6: $25,000 | D6: 100% | E6: =C6*D6 -> $25,000
B7: Thomson Corporation | C7: $5,000 | D7: 100% | E7: 5,000
B8: Wesley Inc. | C8: $50,000 | D8: 100% | E8: 50,000
B9: Gray Industries | C9: $125,000 | D9: 100% | E9: 125,000
B10: Collins Manufacturing Corp | C10: $50,000 | D10: 100% | E10: 50,000
B11: Akenside Trust Co. | C11: $10,000 | D11: 100% | E11: 10,000
B12: Smart Corporation | C12: $50,000 | D12: 100% | E12: 50,000
B13: Cowper, MacPherson and Chatterton, LLP | C13: $15,000 | D13: 100% | E13: 15,000
B14: Crabbe Retail Stores | C14: $50,000 | D14: 100% | E14: 50,000
B15: The Blake Restaurant Group | C15: $25,000 | D15: 100% | E15: 25,000
B16: Burns, Bloomfield | C16: $15,000 | D16: 100% | E16: 15,000
B17: Wordsworth Advertising | C17: $35,000 | D17: 100% | E17: 35,000
B18: Scott Foods | C18: $1,000 | D18: 100% | E18: 1,000
B19: Coleridge Packaging | C19: $10,000 | D19: 100% | E19: 10,000
B20: Southey and Landor | C20: $25,000 | D20: 100% | E20: 25,000
B21: The Thomas Moore Group | C21: $50,000 | D21: 100% | E21: 50,000
B22: Elliot Shipping | C22: $10,000 | D22: 100% | E22: 10,000
B23: The Gordon Fund | C23: $5,000 | D23: 100% | E23: 5,000
A24: Subtotal | C24: =SUM(C6:C23) -> $556,000 | E24: =SUM(E6:E23) -> $556,000
A25: Expected
B26: Thomas, Love & Peacock | C26: $50,000 | D26: 90% | E26: =C26*D26 -> $45,000
B27: Shelley Development Group | C27: $75,000 | D27: 90% | E27: $67,500
B28: Clare Sporting Goods | C28: $25,000 | D28: 75% | E28: $18,750
B29: Keats Lighting | C29: $10,000 | D29: 50% | E29: $5,000
B30: Darley Trucking | C30: $50,000 | D30: 75% | E30: $37,500
B31: Hartley Solutions | C31: $15,000 | D31: 90% | E31: $13,500
B32: Hood Furniture | C32: $10,000 | D32: 50% | E32: $5,000
B33: Mangan Exterminating | C33: $5,000 | D33: 75% | E33: $3,750
B34: Beddoes Plumbing Supply | C34: $3,000 | D34: 90% | E34: $2,700
B35: Tennyson Resort Wear | C35: $10,000 | D35: 90% | E35: $9,000
B36: Browning Hotes | C36: $10,000 | D36: 90% | E36: $9,000
A37: Subtotal | C37: =SUM(C26:C36) -> $263,000 | E37: =SUM(E26:E36) -> $216,700
A38: Prospect
B39: Souther Trust | C39: $10,000 | D39: N.A. | E39: N.A.
B40: Validation National | C40: $25,000 | D40: N.A. | E40: N.A.
B41: Kugelman Financial | C41: $50,000 | D41: N.A. | E41: N.A.
B42: National Industries | C42: $25,000 | D42: N.A. | E42: N.A.
B43: Acme Construction | C43: $10,000 | D43: N.A. | E43: N.A.
B44: Apex Pharmaceutical | C44: $100,000 | D44: N.A. | E44: N.A.
B45: Saperstein Knoxley | C45: $10,000 | D45: N.A. | E45: N.A.
B46: Food Fair | C46: $5,000 | D46: N.A. | E46: N.A.
B47: Bank One | C47: $10,000 | D47: N.A. | E47: N.A.
A48: Subtotal | C48: =SUM(C39:C47) -> $245,000
A50: TOTAL CONFIRMED AND EXPECTED | E50: =SUM(E24+E37) -> $772,700
A51: TOTAL GOAL | E51: $795,000
A52: REMAINING TO BE IDENTIFIED | E52: =E51-E50 -> $22,300
A55: © The Fundraising System
A56: www.thefundraisingsystem.com

Sheet Government
A1: Government
A2: Blue cells are calculated for you, and they generally should not be altered.
A4: Category | B4: Funder/Prospect | C4: Target Gift | D4: Confidence % | E4: Revenue forecast
A5: Confirmed/Continuing
B6: Municipal Services Fund | C6: $150,000 | D6: 100% | E6: =C6*D6 -> $150,000
B7: Department of Agriculture | C7: $230,000 | D7: 100% | E7: =C7*D7 -> 230,000
B8: Corporation for National and Community Svcs | C8: $63,000 | D8: 100% | E8: =C8*D8 -> 63,000
B9: New York State Council on the Arts | C9: $75,000 | D9: 100% | E9: =C9*D9 -> 75,000
B10: National Endowment for the Humanities | C10: $75,000 | D10: 100% | E10: =C10*D10 -> 75,000
A11: Subtotal | C11: =SUM(C6:C10) -> $593,000 | E11: =SUM(E6:E10) -> $593,000
A12: Expected
B13: U.S. Dept of Education | C13: $50,000 | D13: 90% | E13: =C13*D13 -> $45,000
B14: State Dept of Rehabilitation | C14: $150,000 | D14: 50% | E14: =C14*D14 -> 75,000
A15: Subtotal | C15: =SUM(C13:C14) -> $200,000 | E15: =SUM(E13:E14) -> $120,000
A17: Prospect
B18: Congressional earmark | C18: $35,000
B19: Governor's earmark | C19: $25,000
A20: Subtotal | C20: =SUM(C18:C19) -> $60,000
A22: TOTAL CONFIRMED AND EXPECTED | E22: =E11+E15 -> $713,000
A23: TOTAL GOAL | E23: $750,000
A24: REMAINING TO BE IDENTIFIED | E24: =E23-E22 -> $37,000
A27: © The Fundraising System
A28: www.thefundraisingsystem.com

Sheet Individuals
A1: Individuals
A2: Blue cells are calculated for you, and they generally should not be altered.
A4: Category | B4: Funder/Prospect | C4: Target Gift | D4: Confidence % | E4: Revenue forecast
A5: Received/Confirmed
B6: John Johnson | C6: $25,000 | D6: 100% | E6: =C6*D6 -> $25,000
B7: Edmund Bridges | C7: 5,000 | D7: 100% | E7: 5,000
B8: Seth Mendez | C8: 50,000 | D8: 100% | E8: 50,000
B9: Victor Barber | C9: 125,000 | D9: 100% | E9: 125,000
B10: Marta Bowen | C10: 50,000 | D10: 100% | E10: 50,000
B11: Anna Gardner | C11: 10,000 | D11: 100% | E11: 10,000
B12: Cassandra Cross | C12: 50,000 | D12: 100% | E12: 50,000
B13: Antonio Fox | C13: 15,000 | D13: 100% | E13: 15,000
B14: Tyrone Barker | C14: 50,000 | D14: 100% | E14: 50,000
B15: Troy Dunn | C15: 25,000 | D15: 100% | E15: 25,000
B16: Paula McDonald | C16: 15,000 | D16: 50% | E16: 7,500
B17: Nicholas Hoffman | C17: 25,000 | D17: 100% | E17: 25,000
B18: Ben Cohen | C18: 1,000 | D18: 100% | E18: 1,000
B19: Leah Russell | C19: 10,000 | D19: 100% | E19: 10,000
B20: Louisa Ford | C20: 25,000 | D20: 100% | E20: 25,000
B21: Clark Sanders | C21: 50,000 | D21: 100% | E21: 50,000
A22: Subtotal | C22: =SUM(C6:C21) -> $531,000 | E22: =SUM(E6:E21) -> $523,500
A23: Expected
B24: Marjorie Norman | C24: $10,000 | D24: 90% | E24: =C24*D24 -> $9,000
B25: Tabitha Thornton | C25: 5,000 | D25: 90% | E25: 4,500
B26: Laurence Washington | C26: 25,000 | D26: 75% | E26: 18,750
B27: Monica King | C27: 16,500 | D27: 50% | E27: 8,250
B28: Arturo Munoz | C28: 1,800 | D28: 75% | E28: 1,350
B29: Angela Jenkins | C29: 1,800 | D29: 90% | E29: 1,620
B30: Celia Wolfe | C30: 2,500 | D30: 50% | E30: 1,250
B31: Ramona Dixon | C31: 50,000 | D31: 90% | E31: 45,000
B32: Franklin Thompson | C32: 25,000 | D32: 90% | E32: 22,500
B33: Terry Moran | C33: 10,000 | D33: 75% | E33: 7,500
B34: Jimmy Stokes | C34: 5,000 | D34: 50% | E34: 2,500
B35: Malcolm Torres | C35: 10,000 | D35: 75% | E35: 7,500
B36: Wanda Hall | C36: 100,000 | D36: 90% | E36: 90,000
B37: Frank Daniel | C37: 5,000 | D37: 50% | E37: 2,500
B38: Warren Higgins | C38: 5,000 | D38: 90% | E38: 4,500
B39: Genevieve Rivera | C39: 7,500 | D39: 90% | E39: 6,750
B40: Leticia Chambers | C40: 1,000 | D40: 75% | E40: 750
B41: Marta Harper | C41: 1,500 | D41: 50% | E41: 750
B42: Jeanne Banks | C42: 50,000 | D42: 75% | E42: 37,500
B43: Dolores Allison | C43: 75,000 | D43: 90% | E43: 67,500
B44: Hector Boyd | C44: 5,000 | D44: 50% | E44: 2,500
B45: Lois Wilkins | C45: 10,000 | D45: 50% | E45: 5,000
B46: Glen Benson | C46: 5,000 | D46: 75% | E46: 3,750
B47: Susie Ballard | C47: 15,000 | D47: 90% | E47: 13,500
B48: Janice Hubbard | C48: 10,000 | D48: 50% | E48: 5,000
A49: Subtotal | C49: =SUM(C24:C48) -> $452,600 | E49: =SUM(E24:E48) -> $369,720
A50: Prospect
B51: Alan Ginsburg | C51: $25,000 | D51: N.A. | E51: N.A.
B52: Greg Corso | C52: 250,000 | D52: N.A. | E52: N.A.
B53: Jack Kay | C53: 10,000 | D53: N.A. | E53: N.A.
B54: Neal Cassady | C54: 50,000 | D54: N.A. | E54: N.A.
B55: Joyce Johnson | C55: 5,000 | D55: N.A. | E55: N.A.
B56: Diana Prima | C56: 2,500 | D56: N.A. | E56: N.A.
B57: Pete Orlov | C57: 10,000 | D57: N.A. | E57: N.A.
B58: Bill Burrows | C58: 5,000 | D58: N.A. | E58: N.A.
B59: Carolyn Cassady | C59: 10,000 | D59: N.A. | E59: N.A.
A60: Subtotal | C60: =SUM(C51:C59) -> $367,500
A62: TOTAL CONFIRMED AND EXPECTED | E62: =SUM(E22+E49) -> $893,220
A63: TOTAL GOAL | E63: $1,200,000
A64: REMAINING TO BE IDENTIFIED | E64: =E63-E62 -> $306,780
A67: © The Fundraising System
A68: www.thefundraisingsystem.com

Sheet Patron Society
A1: Patron Society
A2: Blue cells are calculated for you, and they generally should not be altered.
A4: Category | B4: Funder/Prospect | C4: Target Gift | D4: Confidence % | E4: Revenue forecast
A5: Received/Confirmed
A6: Platinum Circle
B7: John Johnson | C7: $5,000 | D7: 100% | E7: =C7*D7 -> $5,000
B8: Natalie Consuelo | C8: 5,000 | D8: 100% | E8: 5,000
B9: Avram Kadish | C9: 5,000 | D9: 100% | E9: 5,000
B10: Victor Barber | C10: 5,000 | D10: 100% | E10: 5,000
B11: Marta Bowen | C11: 5,000 | D11: 100% | E11: 5,000
B12: Mary Gardner | C12: 5,000 | D12: 100% | E12: 5,000
A13: Gold Circle
B14: Jim Jefferson | C14: 2,500 | D14: 100% | E14: =C14*D14 -> $2,500
B15: Antonio Fox | C15: 2,500 | D15: 100% | E15: =C15*D15 -> 2,500
B16: Taylor Caldwwell | C16: 2,500 | D16: 100% | E16: =C16*D16 -> 2,500
B17: Troy Dunn | C17: 2,500 | D17: 100% | E17: =C17*D17 -> 2,500
B18: Paulette Humphries | C18: 2,500 | D18: 100% | E18: =C18*D18 -> 2,500
A19: Silver Circle
B20: Noh-si Flynn | C20: 1,000 | D20: 100% | E20: =C20*D20 -> $1,000
B21: Blazes Boyland | C21: 1,000 | D21: 100% | E21: =C21*D21 -> 1,000
B22: Leopold Bloom | C22: 1,000 | D22: 100% | E22: =C22*D22 -> 1,000
B23: Lydia Dedalus | C23: 1,000 | D23: 100% | E23: =C23*D23 -> 1,000
B24: Clark Sanders | C24: 1,000 | D24: 100% | E24: =C24*D24 -> 1,000
A25: Subtotal | C25: =SUM(C7:C24) -> $47,500 | E25: =SUM(E7:E24) -> $47,500
A26: Expected
A27: Platinum Circle
B28: Marjorie Norman | C28: $5,000 | D28: 90% | E28: =C28*D28 -> $4,500
B29: Tabitha Thornton | C29: 5,000 | D29: 90% | E29: 4,500
B30: Laurence Washington | C30: 5,000 | D30: 75% | E30: 3,750
B31: Monica King | C31: 5,000 | D31: 50% | E31: 2,500
B32: Arturo Munoz | C32: 5,000 | D32: 75% | E32: 3,750
B33: Angela Jenkins | C33: 5,000 | D33: 90% | E33: 4,500
B34: Celia Wolfe | C34: 5,000 | D34: 50% | E34: 2,500
B35: Ramona Dixon | C35: 5,000 | D35: 90% | E35: 4,500
A36: Gold Circle
B37: Franklin Thompson | C37: 2,500 | D37: 90% | E37: =C37*D37 -> $2,250
B38: Terry Moran | C38: 2,500 | D38: 75% | E38: 1,875
B39: Jimmy Stokes | C39: 2,500 | D39: 50% | E39: 1,250
B40: Malcolm Torres | C40: 2,500 | D40: 75% | E40: 1,875
B41: Wanda Hall | C41: 2,500 | D41: 90% | E41: 2,250
B42: Frank Daniel | C42: 2,500 | D42: 50% | E42: 1,250
B43: Warren Higgins | C43: 2,500 | D43: 90% | E43: 2,250
B44: Genevieve Rivera | C44: 2,500 | D44: 90% | E44: 2,250
B45: Leticia Chambers | C45: 2,500 | D45: 75% | E45: 1,875
A46: Silver Circle
B47: Marta Harper | C47: 1,000 | D47: 50% | E47: =C47*D47 -> $500
B48: Jeanne Banks | C48: 1,000 | D48: 75% | E48: 750
B49: Delores Allison | C49: 1,000 | D49: 90% | E49: 900
B50: Hector Boyd | C50: 1,000 | D50: 50% | E50: 500
B51: Lois Wilkins | C51: 1,000 | D51: 50% | E51: 500
B52: Glen Benson | C52: 1,000 | D52: 75% | E52: 750
B53: Susie Ballard | C53: 1,000 | D53: 90% | E53: 900
B54: Janice Hubbard | C54: 1,000 | D54: 50% | E54: 500
A55: Subtotal | C55: =SUM(C28:C54) -> $70,500 | E55: =SUM(E28:E54) -> $52,925
A56: Prospect
B57: Alan Ginsburg | C57: $700 | D57: N.A. | E57: N.A.
B58: Greg Corso | C58: 2,500 | D58: N.A. | E58: N.A.
B59: Jack Kay | C59: 2,500 | D59: N.A. | E59: N.A.
B60: Neal Cassady | C60: 5,000 | D60: N.A. | E60: N.A.
B61: Joyce Johnson | C61: 1,000 | D61: N.A. | E61: N.A.
B62: Diana Prima | C62: 2,500 | D62: N.A. | E62: N.A.
B63: Pete Orlov | C63: 5,000 | D63: N.A. | E63: N.A.
B64: Bill Burrows | C64: 5,000 | D64: N.A. | E64: N.A.
B65: Carolyn Cassady | C65: 2,500 | D65: N.A. | E65: N.A.
A66: Subtotal | C66: =SUM(C57:C65) -> $26,700
A68: TOTAL CONFIRMED AND EXPECTED | E68: =SUM(E25+E55) -> $100,425
A69: TOTAL GOAL | E69: $125,000
A70: REMAINING TO BE IDENTIFIED | E70: =E69-E68 -> $24,575
A73: © The Fundraising System
A74: www.thefundraisingsystem.com

Sheet Benefits
A1: Benefits
A2: Blue cells are calculated for you, and they generally should not be altered.
A4: Category | C4: Target Gift | D4: Confidence % | E4: Revenue forecast
A5: Spring Dance
A6: Received/Confirmed
B7: Claudio Monteverdi | C7: $25,000 | D7: 100% | E7: =C7*D7 -> $25,000
B8: Felix Mendelssohn | C8: 15,000 | D8: 100% | E8: 15,000
B9: Rossini, Donizetti, and Bellini LP | C9: 10,000 | D9: 100% | E9: 10,000
B10: Verdi Industries | C10: 1,000 | D10: 100% | E10: 1,000
B11: Wagner Foundation | C11: 500 | D11: 100% | E11: 500
B12: Joseph Bach | C12: 25,000 | D12: 100% | E12: 25,000
B13: George Handel | C13: 15,000 | D13: 100% | E13: 15,000
B14: Subtotal | C14: =SUM(C7:C13) -> $91,500 | E14: =SUM(E7:E13) -> $91,500
A15: Expected
B16: Hugo Wolf, Esq | C16: $25,000 | D16: 90% | E16: =C16*D16 -> $22,500
B17: Strauss, Offenbach & Sullivan | C17: 1,500 | D17: 75% | E17: 1,125
B18: Gounod and Sons | C18: 15,000 | D18: 90% | E18: 13,500
B19: The Tschaikovsky Company | C19: 1,000 | D19: 50% | E19: 500
B20: Frank Faure | C20: 1,000 | D20: 90% | E20: 900
B21: Puccini Doggy Day Care | C21: 500 | D21: 90% | E21: 450
B22: Gluck Enterprises | C22: 2,000 | D22: 90% | E22: 1,800
B23: Haydn, Mozart LLP | C23: $15,000 | D23: 75% | E23: 11,250
B24: Subtotal | C24: =SUM(C16:C23) -> $61,000 | E24: =SUM(E16:E23) -> $52,025
A25: Prospect
B26: Bruckner Trucking | C26: $25,000
B27: Mahler & Mahler | C27: 10,000
B28: Claude Debussy | C28: 1,000
B29: Franz Schubert | C29: 500
B30: Hector Berlioz | C30: 25,000
B31: Robert Schumann | C31: 15,000
B32: Frederic Chopin | C32: 1,000
B33: Subtotal | C33: =SUM(C26:C32) -> $77,500
A34: TOTAL CONFIRMED AND EXPECTED | E34: =E14+E24 -> $143,525
A35: TOTAL GOAL | E35: $200,000
A36: REMAINING TO BE IDENTIFIED | E36: =E35-E34 -> $56,475
A38: Summer Picnic
A39: Received/Confirmed
B40: Claudio Monteverdi | C40: $1,000 | D40: 100% | E40: =C40*D40 -> $1,000
B41: Felix Mendelssohn | C41: 500 | D41: 100% | E41: 500
B42: Rossini, Donizetti, and Bellini LP | C42: 1,000 | D42: 100% | E42: 1,000
B43: Verdi Industries | C43: 1,000 | D43: 100% | E43: 1,000
B44: Wagner Foundation | C44: 500 | D44: 100% | E44: 500
B45: Joseph Bach | C45: 250 | D45: 100% | E45: 250
B46: George Handel | C46: 1,000 | D46: 100% | E46: 1,000
B47: Subtotal | C47: =SUM(C40:C46) -> $5,250 | E47: =SUM(E40:E46) -> $5,250
A48: Expected
B49: Hugo Wolf, Esq | C49: $1,000 | D49: 90% | E49: =C49*D49 -> $900
B50: Strauss, Offenbach & Sullivan | C50: 1,500 | D50: 75% | E50: 1,125
B51: Gounod and Sons | C51: 100 | D51: 90% | E51: 90
B52: The Tschaikovsky Company | C52: 1,000 | D52: 50% | E52: 500
B53: Frank Faure | C53: 500 | D53: 90% | E53: 450
B54: Puccini Doggy Day Care | C54: 100 | D54: 90% | E54: 90
B55: Gluck Enterprises | C55: 500 | D55: 90% | E55: 450
B56: Haydn, Mozart LLP | C56: 1,000 | D56: 75% | E56: 750
B57: Subtotal | C57: =SUM(C49:C56) -> $5,700 | E57: =SUM(E49:E56) -> $4,355
A58: Prospect
B59: Bruckner Trucking | C59: $2,500
B60: Mahler & Mahler | C60: 1,000
B61: Claude Debussy | C61: 500
B62: Franz Schubert | C62: 100
B63: Hector Berlioz | C63: 250
B64: Robert Schumann | C64: 1,000
B65: Frederic Chopin | C65: 500
B66: Subtotal | C66: =SUM(C59:C65) -> 5,850
A67: TOTAL CONFIRMED AND EXPECTED | E67: =E47+E57 -> $9,605
A68: TOTAL GOAL | E68: $15,000
A69: REMAINING TO BE IDENTIFIED | E69: =E68-E67 -> $5,395
A71: Fall Golf Outing
B72: Bruckner Trucking | C72: $2,500 | D72: 100% | E72: =C72*D72 -> $2,500
B73: Mahler & Mahler | C73: 1,000 | D73: 100% | E73: 1,000
B74: Claude Debussy | C74: 500 | D74: 100% | E74: 500
B75: Franz Schubert | C75: 100 | D75: 100% | E75: 100
B76: Hector Berlioz | C76: 250 | D76: 100% | E76: 250
B77: Robert Schumann | C77: 1,000 | D77: 100% | E77: 1,000
B78: Frederic Chopin | C78: 500 | D78: 100% | E78: 500
A79: TOTAL CONFIRMED AND EXPECTED | C79: =SUM(C72:C78) -> $5,850 | E79: =SUM(E72:E78) -> $5,850
A80: TOTAL GOAL | E80: $6,000
A81: REMAINING TO BE IDENTIFIED | E81: =E80-E79 -> $150
A83: GRAND TOTAL
A84: TOTAL CONFIRMED AND EXPECTED | E84: =E34+E67+E79 -> $158,980
A85: TOTAL GOAL | E85: =E35+E68+E80 -> $221,000
A86: REMAINING TO BE IDENTIFIED | E86: =E85-E84 -> $62,020
A89: © The Fundraising System
A90: www.thefundraisingsystem.com

Sheet Annual Campaign
A1: Annual Campaign
A3: Category | B3: Revenue Goal | C3: Actuals | D3: Still Expected | E3: Adjusted Forecast
A4: Summer Appeal | B4: $45,000 | C4: $37,500 | D4: $5,000 | E4: =C4+D4 -> $42,500
A5: Fall Mail Appeal | B5: $25,000 | C5: $23,573 | D5: 0 | E5: =C5+D5 -> $23,573
A6: Giving Tuesday Email | B6: $5,000 | C6: 0 | D6: $5,000 | E6: =C6+D6 -> $5,000
A7: End of Year Email | B7: $10,000 | C7: 0 | D7: $10,000 | E7: =C7+D7 -> $10,000
A8: Total | B8: =SUM(B4:B7) -> $85,000 | C8: =SUM(C4:C7) -> $61,073 | D8: =SUM(D4:D7) -> $20,000 | E8: =SUM(E4:E7) -> $81,073
A11: © The Fundraising System
A12: www.thefundraisingsystem.com
